fUST/lending_fUST_20260627
["ID","MTS","AMOUNT","RATE_DAILY","PERIOD"]
[426511412,1782497440000,-151.12,0.00028818,2]
[426511409,1782497440000,-2000.0,0.000278,2]
[426511408,1782497440000,-707.02033975,0.000278,2]
[426511413,1782497440000,-151.12,0.00028818,2]
[426511422,1782497440000,-151.12,0.00028818,2]
[426511421,1782497440000,-134.92076175,0.00028818,2]
[426511437,1782497440000,-4.42399829,0.00028818,2]
[426511434,1782497440000,-151.12,0.00028818,2]
[426511436,1782497440000,-151.12,0.00028818,2]
[426511435,1782497440000,-151.12,0.00028818,2]
[426511428,1782497440000,-151.12,0.00028818,2]
[426511433,1782497440000,-151.12,0.00028818,2]
[426511426,1782497440000,-151.12,0.00028818,2]
[426511424,1782497440000,-151.12,0.00028818,2]
[426511423,1782497440000,-151.12,0.00028818,2]
[426511427,1782497440000,-151.12,0.00028818,2]
[426511430,1782497440000,-151.12,0.00028818,2]
[426511429,1782497440000,-151.12,0.00028818,2]
[426511432,1782497440000,-151.12,0.00028818,2]
[426511431,1782497440000,-151.12,0.00028818,2]
[426511425,1782497440000,-151.12,0.00028818,2]
[426511462,1782497443000,-151.12,0.00028818,2]
[426511456,1782497443000,-151.12,0.00028818,2]
[426511466,1782497443000,-151.12,0.00028818,2]
[426511464,1782497443000,-151.12,0.00028818,2]
[426511455,1782497443000,-151.12,0.00028818,2]
[426511454,1782497443000,-146.69600171,0.00028818,2]
[426511458,1782497443000,-151.12,0.00028818,2]
[426511459,1782497443000,-151.12,0.00028818,2]
[426511457,1782497443000,-151.12,0.00028818,2]
[426511463,1782497443000,-151.12,0.00028818,2]
[426511461,1782497443000,-151.12,0.00028818,2]
[426511460,1782497443000,-151.12,0.00028818,2]
[426511467,1782497443000,-151.12,0.00028818,2]
[426511468,1782497443000,-151.12,0.00028818,2]
[426511469,1782497443000,-151.12,0.00028818,2]
[426511465,1782497443000,-151.12,0.00028818,2]
[426511471,1782497443000,-500.0,0.00028818,2]
[426511472,1782497443000,-258.91640239,0.00028818,2]
[426511470,1782497443000,-500.0,0.00028818,2]
[426511492,1782497446000,-241.08359761,0.00028818,2]
[426511494,1782497446000,-500.0,0.00028818,2]
[426511495,1782497446000,-96.7133172,0.00028818,2]
[426511503,1782497447000,-23842.81455347,0.00029221,2]
[426511502,1782497447000,-566.1187599,0.00029121,2]
[426511500,1782497447000,-464.87877803,0.00029121,2]
[426511499,1782497447000,-451.09736882,0.00029121,2]
[426511501,1782497447000,-411.828,0.00029121,2]
[426511498,1782497447000,-403.2866828,0.00028818,2]
[426511516,1782497744000,500.0,0.0002922,30]
[426511515,1782497744000,500.0,0.0002922,30]
[426511517,1782497745000,500.0,0.0002922,30]
[426511518,1782497745000,500.0,0.0002922,30]
[426511519,1782497745000,500.0,0.0002922,30]
[426511523,1782497746000,500.0,0.0002922,30]
[426511522,1782497746000,500.0,0.0002922,30]
[426511521,1782497746000,500.0,0.0002922,30]
[426511520,1782497746000,500.0,0.0002922,30]
[426511524,1782497747000,500.0,0.0002922,30]
[426511557,1782498000000,1000.0,0.00027029,30]
[426511561,1782498048000,500.0,0.00027999,30]
[426511563,1782498048000,500.0,0.0002922,30]
[426511562,1782498048000,500.0,0.0002922,30]
[426511565,1782498049000,605.40246739,0.0002922,30]
[426511564,1782498049000,500.0,0.0002922,30]
[426511573,1782498545000,-425.73473048,0.00022337,2]
[426511576,1782498545000,-151.0,0.00024614,2]
[426511574,1782498545000,-411.77475,0.00022563,15]
[426511579,1782498545000,-274.4696311,0.00026326,2]
[426511577,1782498545000,-200.0,0.00025049,2]
[426511580,1782498545000,-80.86334226,0.00026326,2]
[426511578,1782498545000,-184.66664816,0.00026292,2]
[426511575,1782498545000,-184.0,0.00023973,11]
[426511581,1782498553000,-425.80582535,0.00026326,2]
[426511582,1782498553000,-500.0,0.00026326,2]
[426511583,1782498553000,-300.0,0.00026326,2]
[426511586,1782498553000,-735.36442074,0.00026396,2]
[426511584,1782498553000,-70000.0,0.00026327,2]
[426511585,1782498553000,-3998.22356167,0.00026392,2]
[426511588,1782498553000,-5274.08921093,0.00026493,2]
[426511591,1782498553000,-20329.38975015,0.00028,2]
[426511589,1782498553000,-8126.0136288,0.00026494,2]
[426511587,1782498553000,-240.35987896,0.00026492,7]
[426511590,1782498553000,-6252.9791974,0.00027029,2]
[426511596,1782498556000,-151.66,0.00028818,2]
[426511600,1782498556000,-160.4,0.00028818,2]
[426511601,1782498556000,-160.4,0.00028818,2]
[426511602,1782498556000,-160.4,0.00028818,2]
[426511599,1782498556000,-160.4,0.00028818,2]
[426511603,1782498556000,-160.4,0.00028818,2]
[426511597,1782498556000,-151.66,0.00028818,2]
[426511595,1782498556000,-151.66,0.00028818,2]
[426511594,1782498556000,-300.0,0.00028481,2]
[426511593,1782498556000,-421.02421088,0.00028381,2]
[426511592,1782498556000,-1707.69355862,0.00028,2]
[426511598,1782498556000,-160.4,0.00028818,2]
[426511604,1782498556000,-160.4,0.00028818,2]
[426511616,1782498556000,-604.0,0.000292,2]
[426511606,1782498556000,-160.4,0.00028818,2]
[426511608,1782498556000,-160.42,0.00028818,2]
[426511618,1782498556000,-661.82,0.00029243,2]
[426511617,1782498556000,-255.103357,0.00029203,2]
[426511614,1782498556000,-1000.800013,0.0002896,2]
[426511615,1782498556000,-184.66664815,0.00029143,2]
[426511611,1782498556000,-160.42,0.00028818,2]
[426511619,1782498556000,-12519.39544865,0.0003,2]
[426511610,1782498556000,-160.42,0.00028818,2]
[426511607,1782498556000,-160.42,0.00028818,2]
[426511605,1782498556000,-160.4,0.00028818,2]
[426511613,1782498556000,-5539.6299607,0.0002896,2]
[426511609,1782498556000,-160.42,0.00028818,2]
[426511612,1782498556000,-160.42,0.00028818,2]
[426511625,1782498571000,-255.103357,0.00030432,2]
[426511632,1782498571000,-200.0,0.00035649,2]
[426511631,1782498571000,-3998.22356163,0.00035465,2]
[426511630,1782498571000,-177.439909,0.00035464,120]
[426511629,1782498571000,-255.103357,0.00035349,2]
[426511628,1782498571000,-255.103357,0.0003412,2]
[426511627,1782498571000,-255.103357,0.00032891,2]
[426511624,1782498571000,-300.0,0.00030137,6]
[426511626,1782498571000,-255.103357,0.00031661,2]
[426511623,1782498571000,-151.0,0.00030137,6]
[426511622,1782498571000,-151.0,0.00030137,6]
[426511621,1782498571000,-92094.75370443,0.0003,2]
[426511620,1782498571000,-300.0,0.00029999,2]
[426511669,1782498632000,-2937.26701294,0.00029243,2]
[426511677,1782498632000,-16526.87992231,0.00029243,2]
[426511681,1782498632000,-386.03450533,0.00029243,2]
[426511684,1782498632000,-363.69361527,0.00029243,2]
[426511692,1782498632000,-433.45811007,0.00029243,2]
[426511679,1782498632000,-5161.016657,0.00029243,2]
[426511688,1782498632000,-322.005,0.00029243,2]
[426511689,1782498632000,-11573.51075269,0.00029243,2]
[426511671,1782498632000,-300.0,0.00029243,2]
[426511768,1782498638000,-1236.0585203,0.00037748,2]
[426511772,1782498638000,-1407.98244803,0.00037853,2]
[426511771,1782498638000,-791.99012702,0.00037853,2]
[426511770,1782498638000,-439.99451501,0.00037853,2]
[426511766,1782498638000,-9427.00943297,0.00029243,2]
[426511761,1782498638000,-746.98396535,0.00029243,2]
[426511765,1782498638000,-50328.01370103,0.00029243,2]
[426511762,1782498638000,-3085.16277263,0.00029243,2]
[426511760,1782498638000,-7810.05785905,0.00029243,2]
[426511773,1782498638000,-434.29009397,0.00037853,2]
[426511763,1782498638000,-408764.70533027,0.00029243,2]
[426511774,1782498638000,-781.72216915,0.00037853,2]
[426511764,1782498638000,-3988.46972953,0.00029243,2]
[426511775,1782498638000,-1389.72830071,0.00037853,2]
[426511776,1782498638000,-151.0,0.000381,18]
[426511786,1782498638000,-220000.0,0.0004,7]
[426511785,1782498638000,-300.0,0.00039918,67]
[426511780,1782498638000,-151.0,0.000392,14]
[426511779,1782498638000,-310.0,0.00039088,2]
[426511784,1782498638000,-275.8019355,0.00039709,2]
[426511782,1782498638000,-1420.0,0.00039241,2]
[426511781,1782498638000,-1843.0,0.00039241,2]
[426511783,1782498638000,-177.43991,0.00039404,120]
[426511787,1782498638000,-300.0,0.0004,7]
[426511777,1782498638000,-650.0,0.00038506,2]
[426511778,1782498638000,-270.0,0.00038506,2]
[426511793,1782498639000,-250.0,0.000402,14]
[426511788,1782498639000,-499.99,0.00040198,120]
[426511789,1782498639000,-151.37094616,0.000402,2]
[426511790,1782498639000,-153.78886194,0.000402,2]
[426511796,1782498639000,-250.0,0.000402,14]
[426511798,1782498639000,-250.0,0.000402,14]
[426511795,1782498639000,-250.0,0.000402,14]
[426511800,1782498639000,-250.0,0.000402,14]
[426511792,1782498639000,-154.38818303,0.000402,2]
[426511797,1782498639000,-250.0,0.000402,14]
[426511791,1782498639000,-154.29903873,0.000402,2]
[426511799,1782498639000,-250.0,0.000402,14]
[426511809,1782498639000,-71049.15625832,0.000403,2]
[426511801,1782498639000,-264.9,0.000402,14]
[426511806,1782498639000,-5000.0,0.00040241,30]
[426511808,1782498639000,-1270.602147,0.0004028,14]
[426511805,1782498639000,-250.2954775,0.000402,2]
[426511804,1782498639000,-247.86195952,0.000402,2]
[426511802,1782498639000,-181.38005752,0.000402,2]
[426511803,1782498639000,-236.20595515,0.000402,2]
[426511810,1782498639000,-288499.74322568,0.000403,2]
[426511807,1782498639000,-1007.092021,0.0004028,14]
[426511794,1782498639000,-250.0,0.000402,14]
[426511820,1782498640000,-4663.41173797,0.000403,2]
[426511819,1782498640000,-11683.9481525,0.000403,2]
[426511818,1782498640000,-311.59999999,0.000403,2]
[426511842,1782498647000,-3200.11327004,0.000403,2]
[426511843,1782498647000,-1593.6,0.000403,2]
[426511856,1782499136000,417.15472785,0.00029242,30]
[426511859,1782499551000,-4815.8438838,0.00027682,2]
[426511863,1782499551000,-158.95,0.00028818,2]
[426511862,1782499551000,-158.95,0.00028818,2]
[426511864,1782499551000,-158.95,0.00028818,2]
[426511865,1782499551000,-158.95,0.00028818,2]
[426511866,1782499551000,-158.95,0.00028818,2]
[426511868,1782499551000,-158.95,0.00028818,2]
[426511867,1782499551000,-158.95,0.00028818,2]
[426511869,1782499551000,-158.95,0.00028818,2]
[426511871,1782499551000,-158.95,0.00028818,2]
[426511870,1782499551000,-158.95,0.00028818,2]
[426511875,1782499551000,-158.95,0.00028818,2]
[426511873,1782499551000,-158.95,0.00028818,2]
[426511872,1782499551000,-158.95,0.00028818,2]
[426511860,1782499551000,-2946.49644187,0.00027962,2]
[426511861,1782499551000,-300.0,0.00028817,2]
[426511874,1782499551000,-158.95,0.00028818,2]
[426511876,1782499551000,-158.95,0.00028818,2]
[426511877,1782499551000,-158.95,0.00028818,2]
[426511891,1782499551000,-45636.0437543,0.0003866,2]
[426511890,1782499551000,-500.0,0.00038657,15]
[426511887,1782499551000,-174.811886,0.00038002,2]
[426511889,1782499551000,-425.80582535,0.00038657,15]
[426511888,1782499551000,-288.16650851,0.00038506,2]
[426511884,1782499551000,-646.30894539,0.00037006,3]
[426511880,1782499551000,-300.0,0.00031096,3]
[426511883,1782499551000,-922.6089636,0.00035092,30]
[426511881,1782499551000,-5138.1423923,0.00034248,2]
[426511886,1782499551000,-399.69368667,0.00037953,15]
[426511882,1782499551000,-244.2324901,0.00034926,2]
[426511878,1782499551000,-158.95,0.00028818,2]
[426511879,1782499551000,-158.95,0.00028818,2]
[426511885,1782499551000,-637.92970833,0.00037006,3]
[426511894,1782499635000,-11835.58845992,0.0003856,120]
[426511895,1782499640000,-128909.84914563,0.0003856,120]
[426511896,1782499683000,160.0,0.00029257,30]
[426511964,1782499834000,-150.11,0.00029737,15]
[426511962,1782499834000,-150.11,0.00029637,15]
[426511965,1782499834000,-150.11,0.00029787,15]
[426511960,1782499834000,-150.11,0.00029537,15]
[426511967,1782499834000,-150.11,0.00029887,15]
[426511968,1782499834000,-150.11,0.00029937,15]
[426511969,1782499834000,-150.11,0.00029987,15]
[426511961,1782499834000,-150.11,0.00029587,15]
[426511971,1782499834000,-150.11,0.00030037,15]
[426511963,1782499834000,-150.11,0.00029687,15]
[426511959,1782499834000,-150.11,0.00029487,15]
[426511955,1782499834000,-150.11,0.00029337,15]
[426511956,1782499834000,-76.04859828,0.00029387,15]
[426511958,1782499834000,-150.11,0.00029437,15]
[426511973,1782499834000,-182.98,0.00030137,7]
[426511953,1782499834000,-150.11,0.00029287,15]
[426511951,1782499834000,-560.71,0.00029257,7]
[426511950,1782499834000,-150.11,0.00029237,15]
[426511948,1782499834000,-150.11,0.00029187,15]
[426511946,1782499834000,-150.11,0.00029137,15]
[426511944,1782499834000,-150.11,0.00029087,15]
[426511941,1782499834000,-214.65,0.00029037,15]
[426511942,1782499834000,-150.11,0.00029037,15]
[426511938,1782499834000,-214.65,0.00028987,15]
[426511940,1782499834000,-150.11,0.00028987,15]
[426511957,1782499834000,-74.06140172,0.00029387,15]
[426511972,1782499834000,-150.11,0.00030087,15]
[426511966,1782499834000,-150.11,0.00029837,15]
[426511974,1782499834000,-562.94,0.00030137,7]
[426512000,1782499834000,-500.0,0.00038559,15]
[426511975,1782499834000,-562.94,0.00030137,7]
[426512001,1782499834000,-18.2495157,0.00038559,15]
[426511997,1782499834000,-171.9520201,0.00038559,15]
[426511998,1782499834000,-411.84972289,0.00038559,15]
[426511996,1782499834000,-328.0479799,0.00038559,15]
[426511993,1782499834000,-500.0,0.00038559,15]
[426511991,1782499834000,-290.0,0.00038435,2]
[426511994,1782499834000,-500.0,0.00038559,15]
[426511995,1782499834000,-500.0,0.00038559,15]
[426511992,1782499834000,-455.5469688,0.0003846,10]
[426511989,1782499834000,-150.44,0.00030687,15]
[426511988,1782499834000,-150.11,0.00030637,15]
[426511999,1782499834000,-88.15027711,0.00038559,15]
[426511990,1782499834000,-910.74453673,0.00037959,15]
[426511987,1782499834000,-150.11,0.00030587,15]
[426511976,1782499834000,-14.12540906,0.00030137,15]
[426511978,1782499834000,-150.11,0.00030187,15]
[426511977,1782499834000,-135.98459094,0.00030137,15]
[426511979,1782499834000,-150.11,0.00030237,15]
[426511980,1782499834000,-150.11,0.00030287,15]
[426511970,1782499834000,-562.94,0.0003,7]
[426511981,1782499834000,-150.11,0.00030337,15]
[426511982,1782499834000,-150.11,0.00030387,15]
[426511983,1782499834000,-44.28889871,0.00030437,15]
[426511985,1782499834000,-150.11,0.00030487,15]
[426511984,1782499834000,-105.82110129,0.00030437,15]
[426511986,1782499834000,-150.11,0.00030537,15]
[426512059,1782499838000,-528.57015078,0.00038559,15]
[426512061,1782499838000,-500.0,0.00038559,15]
[426512065,1782499838000,-500.0,0.00038559,15]
[426512066,1782499838000,-500.0,0.00038559,15]
[426512063,1782499838000,-500.0,0.00038559,15]
[426512069,1782499838000,-500.0,0.00038559,15]
[426512067,1782499838000,-500.0,0.00038559,15]
[426512072,1782499838000,-2380.07264377,0.0003856,120]
[426512068,1782499838000,-500.0,0.00038559,15]
[426512071,1782499838000,-250.0,0.00038559,15]
[426512070,1782499838000,-500.0,0.00038559,15]
[426512165,1782499841000,-1429.83404866,0.0003856,120]
[426512225,1782499847000,-1315.06538443,0.0003856,120]
[426512224,1782499847000,-14323.31657174,0.0003856,120]
[426512222,1782499847000,-4613.08343096,0.0003856,120]
[426512220,1782499847000,-3626.83661295,0.0003846,2]
[426512221,1782499847000,-220.51817365,0.0003856,120]
[426512223,1782499847000,-2017.52951503,0.0003856,120]
[426512226,1782499848000,-7359.68716513,0.0003856,120]
[426512227,1782499881000,500.0,0.000292,30]
[426512229,1782500207000,6351.70323461,0.0002,5]
[426512231,1782500240000,12402.94363985,0.00021,2]
[426512232,1782500242000,760.0,0.00029264,30]
[426512233,1782500259000,46394.81557716,0.00021,2]
[426512235,1782500629000,759.1298405,0.00028616,120]
[426512252,1782500950000,-11170.43263868,0.00028199,2]
[426512251,1782500950000,-166.0,0.00024,11]
[426512250,1782500950000,-383.25,0.00021,12]
[426512249,1782500950000,-445.37606349,0.00021,2]
[426512248,1782500950000,-3605.18442284,0.00021,2]
[426512247,1782500950000,-507.15899205,0.0002079,2]
[426512253,1782500962000,-7024.12107443,0.00028199,2]
[426512277,1782501031000,-1000.35987896,0.00028199,2]
[426512307,1782501038000,-5169.04265363,0.00028199,2]
[426512312,1782501038000,-38085.29500909,0.00029265,2]
[426512315,1782501038000,-904.77539185,0.00029265,2]
[426512309,1782501038000,-3173.48203634,0.00029165,2]
[426512308,1782501038000,-184.66664815,0.00029066,2]
[426512311,1782501038000,-246.43,0.00029265,2]
[426512316,1782501038000,-663.03344233,0.00029265,2]
[426512310,1782501038000,-604.0,0.000292,2]
[426512322,1782501040000,-1447.36641983,0.00029265,2]
[426512343,1782501046000,-500.0,0.00029264,2]
[426512340,1782501046000,-500.0,0.00029264,2]
[426512341,1782501046000,-500.0,0.00029264,2]
[426512342,1782501046000,-500.0,0.00029264,2]
[426512344,1782501046000,-500.0,0.00029264,2]
[426512350,1782501046000,-500.0,0.00029264,2]
[426512345,1782501046000,-500.0,0.00029264,2]
[426512349,1782501046000,-500.0,0.00029264,2]
[426512351,1782501046000,-1594.89877364,0.00029265,2]
[426512348,1782501046000,-500.0,0.00029264,2]
[426512347,1782501046000,-207.77376654,0.00029264,2]
[426512346,1782501046000,-500.0,0.00029264,2]
[426512368,1782501505000,160.0,0.00029264,30]
[426512369,1782501567000,160.0,0.00029263,30]
[426512384,1782502039000,-33.97269195,0.00029163,2]
[426512383,1782502039000,-265.0,0.00025,10]
[426512387,1782502101000,500.0,0.00029163,30]
[426512391,1782502157000,-2776.79678178,0.00029163,2]
[426512390,1782502157000,-184.66664816,0.00029163,2]
[426512389,1782502157000,-391.20447893,0.00029163,2]
[426512392,1782502157000,-420.0,0.00029243,2]
[426512393,1782502157000,-500.0,0.00029262,2]
[426512395,1782502157000,-265.48616193,0.00029262,2]
[426512394,1782502157000,-500.0,0.00029262,2]
[426512449,1782502231000,-234.51383807,0.00029262,2]
[426512455,1782502232000,-500.0,0.00029262,2]
[426512454,1782502232000,-500.0,0.00029262,2]
[426512456,1782502232000,-127.77573395,0.00029262,2]
[426512517,1782502240000,-57.13641738,0.00029262,2]
[426512513,1782502240000,-517.66590262,0.00029262,2]
[426512515,1782502240000,-500.0,0.00029262,2]
[426512832,1782502243000,-143.34940968,0.00029262,2]
[426512973,1782502253000,300.01,0.0003013,30]
[426512975,1782502329000,-4344.18230492,0.00028631,2]
[426512984,1782503324000,160.0,0.00029262,30]
[426512985,1782503333000,417.15472785,0.00029262,30]
[426512986,1782503348000,160.0,0.00029262,30]
[426513000,1782503357000,-151.49,0.00028818,2]
[426513006,1782503357000,-151.49,0.00028818,2]
[426513005,1782503357000,-151.49,0.00028818,2]
[426513007,1782503357000,-151.49,0.00028818,2]
[426513003,1782503357000,-151.49,0.00028818,2]
[426513002,1782503357000,-151.49,0.00028818,2]
[426512998,1782503357000,-151.49,0.00028818,2]
[426513001,1782503357000,-151.49,0.00028818,2]
[426512997,1782503357000,-151.49,0.00028818,2]
[426512999,1782503357000,-151.49,0.00028818,2]
[426512990,1782503357000,-192.2736187,0.00028047,2]
[426512995,1782503357000,-151.49,0.00028818,2]
[426512994,1782503357000,-151.49,0.00028818,2]
[426512993,1782503357000,-151.49,0.00028818,2]
[426512992,1782503357000,-151.49,0.00028818,2]
[426512989,1782503357000,-7370.2672334,0.00028034,2]
[426512991,1782503357000,-199.1538993,0.00028444,2]
[426513004,1782503357000,-151.49,0.00028818,2]
[426512988,1782503357000,-233.9961539,0.000279,3]
[426512987,1782503357000,-2924.4859037,0.00027228,2]
[426512996,1782503357000,-151.49,0.00028818,2]
[426513008,1782503357000,-151.49,0.00028818,2]
[426513025,1782503357000,-641.81,0.00029252,3]
[426513011,1782503357000,-151.49,0.00028818,2]
[426513032,1782503357000,-500.0,0.00029261,2]
[426513030,1782503357000,-500.0,0.00029261,2]
[426513010,1782503357000,-151.49,0.00028818,2]
[426513029,1782503357000,-500.0,0.00029261,2]
[426513027,1782503357000,-589.16,0.0002926,2]
[426513028,1782503357000,-500.0,0.00029261,2]
[426513026,1782503357000,-5999.960001,0.0002926,2]
[426513024,1782503357000,-213.92,0.00029252,3]
[426513023,1782503357000,-427.84,0.00029252,3]
[426513020,1782503357000,-396.83202608,0.00029162,2]
[426513031,1782503357000,-500.0,0.00029261,2]
[426513022,1782503357000,-855.68,0.00029252,3]
[426513021,1782503357000,-1919.30944048,0.00029162,2]
[426513012,1782503357000,-151.49,0.00028818,2]
[426513013,1782503357000,-151.49,0.00028818,2]
[426513015,1782503357000,-151.49,0.00028818,2]
[426513009,1782503357000,-151.49,0.00028818,2]
[426513017,1782503357000,-524.20244029,0.0002916,2]
[426513014,1782503357000,-151.49,0.00028818,2]
[426513018,1782503357000,-542.69557085,0.0002916,2]
[426513019,1782503357000,-589.16,0.0002916,2]
[426513016,1782503357000,-500.0,0.0002916,2]
[426513046,1782503358000,-589.16,0.00029261,2]
[426513044,1782503358000,-589.16,0.00029261,2]
[426513049,1782503358000,-1000.0,0.00029261,2]
[426513045,1782503358000,-589.16,0.00029261,2]
[426513048,1782503358000,-1000.0,0.00029261,2]
[426513041,1782503358000,-589.16,0.00029261,2]
[426513042,1782503358000,-589.16,0.00029261,2]
[426513040,1782503358000,-589.16,0.00029261,2]
[426513034,1782503358000,-589.16,0.00029261,2]
[426513039,1782503358000,-589.16,0.00029261,2]
[426513037,1782503358000,-589.16,0.00029261,2]
[426513036,1782503358000,-589.16,0.00029261,2]
[426513038,1782503358000,-589.16,0.00029261,2]
[426513035,1782503358000,-589.16,0.00029261,2]
[426513033,1782503358000,-491.66339748,0.00029261,2]
[426513047,1782503358000,-1000.0,0.00029261,2]
[426513043,1782503358000,-589.16,0.00029261,2]
[426513051,1782503358000,-1000.0,0.00029261,2]
[426513065,1782503358000,-589.16,0.00029999,2]
[426513050,1782503358000,-1000.0,0.00029261,2]
[426513068,1782503358000,-589.26462061,0.00029999,2]
[426513069,1782503358000,-6673.10513421,0.0003,2]
[426513066,1782503358000,-589.16,0.00029999,2]
[426513067,1782503358000,-589.16,0.00029999,2]
[426513070,1782503358000,-80865.43926727,0.0003,2]
[426513061,1782503358000,-589.16,0.00029999,2]
[426513052,1782503358000,-643.43970032,0.00029265,2]
[426513064,1782503358000,-589.16,0.00029999,2]
[426513063,1782503358000,-589.16,0.00029999,2]
[426513060,1782503358000,-589.16,0.00029999,2]
[426513056,1782503358000,-229.99,0.00029827,2]
[426513057,1782503358000,-305.68326742,0.00029915,2]
[426513058,1782503358000,-300.0,0.00029999,2]
[426513059,1782503358000,-300.0,0.00029999,3]
[426513055,1782503358000,-1402.2875814,0.00029564,2]
[426513053,1782503358000,-359.96691063,0.00029265,2]
[426513054,1782503358000,-1078.7988157,0.00029564,2]
[426513062,1782503358000,-589.16,0.00029999,2]
[426513071,1782503366000,-61125.96269917,0.0003,2]
[426513072,1782503367000,-12887.64076746,0.0003,2]
[426513107,1782503432000,-1296.66822468,0.00029162,2]
[426513110,1782503432000,-433.45811007,0.00029162,2]
[426513117,1782503432000,-3382.82970588,0.00029162,2]
[426513119,1782503432000,-1656.09733419,0.00029262,2]
[426513115,1782503432000,-5947.1114272,0.00029162,2]
[426513297,1782503438000,-1040.33193334,0.00029262,2]
[426513296,1782503438000,-3128.7095337,0.00029262,2]
[426513310,1782503443000,-9946.6674664,0.00029262,2]
[426513358,1782503465000,500.0,0.00029262,30]
[426513360,1782503850000,1300.02669478,7.6e-05,2]
[426513362,1782503860000,8481.8721122,0.000118,5]
[426513364,1782504019000,922.6089636,0.00027072,30]
[426513370,1782504229000,160.0,0.00029254,30]
[426513371,1782504355000,-900.0,0.00025469,3]
[426513372,1782504355000,-222.72176386,0.00025469,21]
[426513373,1782504428000,-242.08748614,0.00025469,21]
[426513374,1782504428000,-2924.4859037,0.00026956,2]
[426513376,1782504428000,-261.8862706,0.00027773,7]
[426513375,1782504428000,-1900.99410231,0.00027228,7]
[426513377,1782504428000,-1900.99410231,0.00027773,7]
[426513378,1782504428000,-506.66916761,0.00027959,2]
[426513380,1782504428000,-500.0,0.00027959,2]
[426513379,1782504428000,-500.0,0.00027959,2]
[426513383,1782504428000,-45636.0437543,0.0002796,2]
[426513381,1782504428000,-524.20244029,0.00027959,2]
[426513382,1782504428000,-542.69557085,0.00027959,2]
[426513385,1782504428000,-244.2324901,0.00028234,2]
[426513386,1782504428000,-1900.99410231,0.00028589,7]
[426513387,1782504428000,-370.37655774,0.00029154,2]
[426513388,1782504428000,-249.57,0.00029244,3]
[426513389,1782504428000,-51.80809422,0.00029244,3]
[426513384,1782504428000,-2959.97599268,0.00028134,2]
[426513449,1782504632000,-151.49,0.00028818,2]
[426513445,1782504632000,-151.49,0.00028818,2]
[426513439,1782504632000,-151.49,0.00028818,2]
[426513436,1782504632000,-192.2736187,0.0002833,2]
[426513438,1782504632000,-151.49,0.00028818,2]
[426513440,1782504632000,-151.49,0.00028818,2]
[426513444,1782504632000,-151.49,0.00028818,2]
[426513437,1782504632000,-151.49,0.00028818,2]
[426513441,1782504632000,-151.49,0.00028818,2]
[426513443,1782504632000,-151.49,0.00028818,2]
[426513442,1782504632000,-151.49,0.00028818,2]
[426513450,1782504632000,-151.49,0.00028818,2]
[426513446,1782504632000,-151.49,0.00028818,2]
[426513448,1782504632000,-151.49,0.00028818,2]
[426513452,1782504632000,-151.49,0.00028818,2]
[426513453,1782504632000,-151.49,0.00028818,2]
[426513456,1782504632000,-151.49,0.00028818,2]
[426513455,1782504632000,-151.49,0.00028818,2]
[426513458,1782504632000,-12.99844399,0.00028818,2]
[426513454,1782504632000,-151.49,0.00028818,2]
[426513457,1782504632000,-151.49,0.00028818,2]